{"text_format":"3","workbook":"xlsx","n_sheets":2,"sheets":["НАЧАЛО","ЛИЧНЫЙ БЮДЖЕТ НА МЕСЯЦ"],"read":"whole","date_system":"1900"}

{"sheet":"НАЧАЛО","index":0,"n_rows":7,"n_cols":2,"rows_kept":7}
[null,"ОБ ЭТОМ ШАБЛОНЕ"]
[null,"Используйте лист «Личный бюджет на месяц» для отслеживания плановых и фактических доходов и расходов за месяц."]
[null,"Вводите расходы по разным категориям в соответствующих таблицах."]
[null,"Планируемый и фактический остаток, а также разница рассчитываются автоматически."]
[null,"Примечание. "]
[null,"В столбце A листа ЛИЧНЫЙ БЮДЖЕТ НА МЕСЯЦ содержатся дополнительные инструкции. Их текст намерено скрыт. Чтобы удалить этот текст, выделите столбец A и нажмите клавишу DELETE. Чтобы отобразить текст, выделите столбец A и измените цвет шрифта."]
[null,"Чтобы получить дополнительные сведения о таблице на листе, щелкните в ней ячейку, затем нажмите клавиши SHIFT+F10, выберите пункт «Таблица», а затем — «Замещающий текст»."]

{"sheet":"ЛИЧНЫЙ БЮДЖЕТ НА МЕСЯЦ","index":1,"n_rows":64,"n_cols":10,"rows_kept":64,"merged":[[3,1,5,1],[3,2,3,3],[3,6,4,8],[3,9,4,9],[4,2,4,3],[5,2,5,3],[5,6,6,8],[5,9,6,9],[7,1,9,1],[7,2,7,3],[7,6,8,8],[7,9,8,9],[8,2,8,3],[9,2,9,3],[22,6,22,9],[23,1,23,4],[31,6,31,9],[33,1,33,4],[38,6,38,9],[40,1,40,4],[44,6,44,9],[46,1,46,4],[50,6,50,9],[54,1,54,4],[57,6,57,9],[58,6,59,8],[58,9,59,9],[60,6,61,8],[60,9,61,9],[62,6,63,8],[62,9,63,9],[64,1,64,4]]}
["Создайте на этом листе личный бюджет на месяц. Полезные инструкции о том, как использовать этот лист, содержатся в ячейках этого столбца. Нажмите СТРЕЛКУ ВНИЗ, чтобы начать."]
["Ячейка справа содержит заголовок листа. Следующие инструкции указаны в ячейке A4.","ЛИЧНЫЙ БЮДЖЕТ НА МЕСЯЦ"]
[]
["Надпись «Плановый месячный доход» указана в ячейке справа. Введите доход 1 в ячейке E4 и дополнительный доход в ячейке E5 для расчета итоговый месячный доход в ячейке E6. Следующие инструкции указаны в ячейке A6.","ПЛАНОВЫЙ МЕСЯЧНЫЙ ДОХОД","Доход 1",null,{"v":4300,"d":"4,300.00 ₽"},null,"ПЛАНОВЫЙ ОСТАТОК \n(плановые доходы минус расходы)",null,null,{"$f":"E6-J59","v":{"v":3405,"d":"3,405.00 ₽"}}]
[null,null,"Дополнительный доход",null,{"v":300,"d":"300.00 ₽"}]
["Плановый остаток автоматически рассчитывается в ячейке J4, фактический остаток — в ячейке J6 и разница — в ячейке J8. Следующие инструкции указаны в ячейке A8.",null,"Итоговый месячный доход",null,{"$f":"SUM(E4:E5)","v":{"v":4600,"d":"4,600.00 ₽"}},null,"ФАКТИЧЕСКИЙ ОСТАТОК \n(фактические доходы минус расходы)",null,null,{"$f":"E10-J61","v":{"v":3064,"d":"3,064.00 ₽"}}]
[]
["Надпись «Фактический месячный доход» указана в ячейке справа. Введите источник доход 1 в ячейке E8 и дополнительный доход в ячейке E9 для расчета итоговый месячный доход в ячейке E10. Следующие инструкции указаны в ячейке A12.","ФАКТИЧЕСКИЙ МЕСЯЧНЫЙ ДОХОД","Доход 1",null,{"v":4000,"d":"4,000.00 ₽"},null,"РАЗНИЦА \n(фактическая сумма минус плановая сумма)",null,null,{"$f":"J6-J4","v":{"v":-341,"d":"-341.00 ₽"}}]
[null,null,"Дополнительный доход",null,{"v":300,"d":"300.00 ₽"}]
[null,null,"Итоговый месячный доход",null,{"$f":"SUM(E8:E9)","v":{"v":4300,"d":"4,300.00 ₽"}}]
[]
["Введите сведения в таблице «Жилье», начиная с ячейки справа, и в таблицу «Развлечения», начиная с ячейки G12. Следующие инструкции указаны в ячейке A25.","ЖИЛЬЕ","Плановые затраты","Фактические затраты","Разница",null,"РАЗВЛЕЧЕНИЯ","Плановые затраты","Фактические затраты","Разница"]
[null,"Ипотека или аренда",{"v":1000,"d":"1,000.00 ₽"},{"v":1000,"d":"1,000.00 ₽"},{"$f":"Жилье[[#This Row],[Плановые затраты]]-Жилье[[#This Row],[Фактические затраты]]","v":{"v":0,"d":"0.00 ₽"}},null,"Видео",null,null,{"$f":"Развлечения[[#This Row],[Плановые затраты]]-Развлечения[[#This Row],[Фактические затраты]]","v":{"v":0,"d":"0.00 ₽"}}]
[null,"Телефон",{"v":54,"d":"54.00 ₽"},{"v":100,"d":"100.00 ₽"},{"$f":"Жилье[[#This Row],[Плановые затраты]]-Жилье[[#This Row],[Фактические затраты]]","v":{"v":-46,"d":"-46.00 ₽"}},null,"Музыка",null,null,{"$f":"Развлечения[[#This Row],[Плановые затраты]]-Развлечения[[#This Row],[Фактические затраты]]","v":{"v":0,"d":"0.00 ₽"}}]
[null,"Электричество",{"v":44,"d":"44.00 ₽"},{"v":56,"d":"56.00 ₽"},{"$f":"Жилье[[#This Row],[Плановые затраты]]-Жилье[[#This Row],[Фактические затраты]]","v":{"v":-12,"d":"-12.00 ₽"}},null,"Кино",null,null,{"$f":"Развлечения[[#This Row],[Плановые затраты]]-Развлечения[[#This Row],[Фактические затраты]]","v":{"v":0,"d":"0.00 ₽"}}]
[null,"Газ",{"v":22,"d":"22.00 ₽"},{"v":28,"d":"28.00 ₽"},{"$f":"Жилье[[#This Row],[Плановые затраты]]-Жилье[[#This Row],[Фактические затраты]]","v":{"v":-6,"d":"-6.00 ₽"}},null,"Концерты",null,null,{"$f":"Развлечения[[#This Row],[Плановые затраты]]-Развлечения[[#This Row],[Фактические затраты]]","v":{"v":0,"d":"0.00 ₽"}}]
[null,"Водоснабжение и канализация",{"v":8,"d":"8.00 ₽"},{"v":8,"d":"8.00 ₽"},{"$f":"Жилье[[#This Row],[Плановые затраты]]-Жилье[[#This Row],[Фактические затраты]]","v":{"v":0,"d":"0.00 ₽"}},null,"Спортивные мероприятия",null,null,{"$f":"Развлечения[[#This Row],[Плановые затраты]]-Развлечения[[#This Row],[Фактические затраты]]","v":{"v":0,"d":"0.00 ₽"}}]
[null,"Кабельное ТВ",{"v":34,"d":"34.00 ₽"},{"v":34,"d":"34.00 ₽"},{"$f":"Жилье[[#This Row],[Плановые затраты]]-Жилье[[#This Row],[Фактические затраты]]","v":{"v":0,"d":"0.00 ₽"}},null,"Театр",null,null,{"$f":"Развлечения[[#This Row],[Плановые затраты]]-Развлечения[[#This Row],[Фактические затраты]]","v":{"v":0,"d":"0.00 ₽"}}]
[null,"Вывоз мусора",{"v":10,"d":"10.00 ₽"},{"v":10,"d":"10.00 ₽"},{"$f":"Жилье[[#This Row],[Плановые затраты]]-Жилье[[#This Row],[Фактические затраты]]","v":{"v":0,"d":"0.00 ₽"}},null,"Другое",null,null,{"$f":"Развлечения[[#This Row],[Плановые затраты]]-Развлечения[[#This Row],[Фактические затраты]]","v":{"v":0,"d":"0.00 ₽"}}]
[null,"Ремонт или техническое обслуживание",{"v":23,"d":"23.00 ₽"},{"v":0,"d":"0.00 ₽"},{"$f":"Жилье[[#This Row],[Плановые затраты]]-Жилье[[#This Row],[Фактические затраты]]","v":{"v":23,"d":"23.00 ₽"}},null,"Другое",null,null,{"$f":"Развлечения[[#This Row],[Плановые затраты]]-Развлечения[[#This Row],[Фактические затраты]]","v":{"v":0,"d":"0.00 ₽"}}]
[null,"Материалы",{"v":0,"d":"0.00 ₽"},{"v":0,"d":"0.00 ₽"},{"$f":"Жилье[[#This Row],[Плановые затраты]]-Жилье[[#This Row],[Фактические затраты]]","v":{"v":0,"d":"0.00 ₽"}},null,"Другое",null,null,{"$f":"Развлечения[[#This Row],[Плановые затраты]]-Развлечения[[#This Row],[Фактические затраты]]","v":{"v":0,"d":"0.00 ₽"}}]
[null,"Другое",{"v":0,"d":"0.00 ₽"},{"v":0,"d":"0.00 ₽"},{"$f":"Жилье[[#This Row],[Плановые затраты]]-Жилье[[#This Row],[Фактические затраты]]","v":{"v":0,"d":"0.00 ₽"}},null,"Промежуточный итог",null,null,{"$f":"SUBTOTAL(109,Развлечения[Разница])","v":{"v":0,"d":"0.00 ₽"}}]
[null,"Промежуточный итог",null,null,{"$f":"SUBTOTAL(109,Жилье[Разница])","v":{"v":-41,"d":"-41.00 ₽"}}]
[{"$nulls":6},"КРЕДИТЫ","Плановые затраты","Фактические затраты","Разница"]
["Введите сведения в таблице «Транспорт», начиная с ячейки справа, и в таблицу «Кредиты», начиная с ячейки G24. Следующие инструкции указаны в ячейке A35.","ТРАНСПОРТ","Плановые затраты","Фактические затраты","Разница",null,"Личные накопления",null,null,{"$f":"Кредиты[[#This Row],[Плановые затраты]]-Кредиты[[#This Row],[Фактические затраты]]","v":{"v":0,"d":"0.00 ₽"}}]
[null,"Расходы на автомобиль",null,null,{"$f":"Транспорт[[#This Row],[Плановые затраты]]-Транспорт[[#This Row],[Фактические затраты]]","v":{"v":0,"d":"0.00 ₽"}},null,"На учебу",null,null,{"$f":"Кредиты[[#This Row],[Плановые затраты]]-Кредиты[[#This Row],[Фактические затраты]]","v":{"v":0,"d":"0.00 ₽"}}]
[null,"Проезд на автобусе/такси",null,null,{"$f":"Транспорт[[#This Row],[Плановые затраты]]-Транспорт[[#This Row],[Фактические затраты]]","v":{"v":0,"d":"0.00 ₽"}},null,"Кредитная карта",null,null,{"$f":"Кредиты[[#This Row],[Плановые затраты]]-Кредиты[[#This Row],[Фактические затраты]]","v":{"v":0,"d":"0.00 ₽"}}]
[null,"Страхование",null,null,{"$f":"Транспорт[[#This Row],[Плановые затраты]]-Транспорт[[#This Row],[Фактические затраты]]","v":{"v":0,"d":"0.00 ₽"}},null,"Кредитная карта",null,null,{"$f":"Кредиты[[#This Row],[Плановые затраты]]-Кредиты[[#This Row],[Фактические затраты]]","v":{"v":0,"d":"0.00 ₽"}}]
[null,"Лицензирование",null,null,{"$f":"Транспорт[[#This Row],[Плановые затраты]]-Транспорт[[#This Row],[Фактические затраты]]","v":{"v":0,"d":"0.00 ₽"}},null,"Кредитная карта",null,null,{"$f":"Кредиты[[#This Row],[Плановые затраты]]-Кредиты[[#This Row],[Фактические затраты]]","v":{"v":0,"d":"0.00 ₽"}}]
[null,"Топливо",null,null,{"$f":"Транспорт[[#This Row],[Плановые затраты]]-Транспорт[[#This Row],[Фактические затраты]]","v":{"v":0,"d":"0.00 ₽"}},null,"Другое",null,null,{"$f":"Кредиты[[#This Row],[Плановые затраты]]-Кредиты[[#This Row],[Фактические затраты]]","v":{"v":0,"d":"0.00 ₽"}}]
[null,"Обслуживание",null,null,{"$f":"Транспорт[[#This Row],[Плановые затраты]]-Транспорт[[#This Row],[Фактические затраты]]","v":{"v":0,"d":"0.00 ₽"}},null,"Промежуточный итог",null,null,{"$f":"SUBTOTAL(109,Кредиты[Разница])","v":{"v":0,"d":"0.00 ₽"}}]
[null,"Другое",null,null,{"$f":"Транспорт[[#This Row],[Плановые затраты]]-Транспорт[[#This Row],[Фактические затраты]]","v":{"v":0,"d":"0.00 ₽"}}]
[null,"Промежуточный итог",null,null,{"$f":"SUBTOTAL(109,Транспорт[Разница])","v":{"v":0,"d":"0.00 ₽"}},null,"НАЛОГИ","Плановые затраты","Фактические затраты","Разница"]
[{"$nulls":6},"Федеральные",null,null,{"$f":"Налоги[[#This Row],[Плановые затраты]]-Налоги[[#This Row],[Фактические затраты]]","v":{"v":0,"d":"0.00 ₽"}}]
["Введите сведения в таблице «Страхование», начиная с ячейки справа, и в таблицу «Налоги», начиная с ячейки G33. Следующие инструкции указаны в ячейке A42.","СТРАХОВАНИЕ","Плановые затраты","Фактические затраты","Разница",null,"Уровня штата",null,null,{"$f":"Налоги[[#This Row],[Плановые затраты]]-Налоги[[#This Row],[Фактические затраты]]","v":{"v":0,"d":"0.00 ₽"}}]
[null,"Дом",null,null,{"$f":"Страхование[[#This Row],[Плановые затраты]]-Страхование[[#This Row],[Фактические затраты]]","v":{"v":0,"d":"0.00 ₽"}},null,"Местные",null,null,{"$f":"Налоги[[#This Row],[Плановые затраты]]-Налоги[[#This Row],[Фактические затраты]]","v":{"v":0,"d":"0.00 ₽"}}]
[null,"Здоровье",null,null,{"$f":"Страхование[[#This Row],[Плановые затраты]]-Страхование[[#This Row],[Фактические затраты]]","v":{"v":0,"d":"0.00 ₽"}},null,"Другое",null,null,{"$f":"Налоги[[#This Row],[Плановые затраты]]-Налоги[[#This Row],[Фактические затраты]]","v":{"v":0,"d":"0.00 ₽"}}]
[null,"Жизнь",null,null,{"$f":"Страхование[[#This Row],[Плановые затраты]]-Страхование[[#This Row],[Фактические затраты]]","v":{"v":0,"d":"0.00 ₽"}},null,"Промежуточный итог",null,null,{"$f":"SUBTOTAL(109,Налоги[Разница])","v":{"v":0,"d":"0.00 ₽"}}]
[null,"Другое",null,null,{"$f":"Страхование[[#This Row],[Плановые затраты]]-Страхование[[#This Row],[Фактические затраты]]","v":{"v":0,"d":"0.00 ₽"}}]
[null,"Промежуточный итог",null,null,{"$f":"SUBTOTAL(109,Страхование[Разница])","v":{"v":0,"d":"0.00 ₽"}},null,"СБЕРЕЖЕНИЯ И ИНВЕСТИЦИИ","Плановые затраты","Фактические затраты","Разница"]
[{"$nulls":6},"Пенсионный счет",null,null,{"$f":"Сбережения[[#This Row],[Плановые затраты]]-Сбережения[[#This Row],[Фактические затраты]]","v":{"v":0,"d":"0.00 ₽"}}]
["Введите сведения в таблице «Еда», начиная с ячейки справа, и в таблицу «Сбережения», начиная с ячейки G40. Следующие инструкции указаны в ячейке A48.","ПРОДУКТЫ","Плановые затраты","Фактические затраты","Разница",null,"Инвестиционный счет",null,null,{"$f":"Сбережения[[#This Row],[Плановые затраты]]-Сбережения[[#This Row],[Фактические затраты]]","v":{"v":0,"d":"0.00 ₽"}}]
[null,"Продовольственные товары",null,null,{"$f":"Еда[[#This Row],[Плановые затраты]]-Еда[[#This Row],[Фактические затраты]]","v":{"v":0,"d":"0.00 ₽"}},null,"Другое",null,null,{"$f":"Сбережения[[#This Row],[Плановые затраты]]-Сбережения[[#This Row],[Фактические затраты]]","v":{"v":0,"d":"0.00 ₽"}}]
[null,"Рестораны",null,null,{"$f":"Еда[[#This Row],[Плановые затраты]]-Еда[[#This Row],[Фактические затраты]]","v":{"v":0,"d":"0.00 ₽"}},null,"Промежуточный итог",null,null,{"$f":"SUBTOTAL(109,Сбережения[Разница])","v":{"v":0,"d":"0.00 ₽"}}]
[null,"Другое",null,null,{"$f":"Еда[[#This Row],[Плановые затраты]]-Еда[[#This Row],[Фактические затраты]]","v":{"v":0,"d":"0.00 ₽"}}]
[null,"Промежуточный итог",null,null,{"$f":"SUBTOTAL(109,Еда[Разница])","v":{"v":0,"d":"0.00 ₽"}},null,"ПОДАРКИ И ПОЖЕРТВОВАНИЯ","Плановые затраты","Фактические затраты","Разница"]
[{"$nulls":6},"Благотворительный взнос 1",null,null,{"$f":"Подарки[[#This Row],[Плановые затраты]]-Подарки[[#This Row],[Фактические затраты]]","v":{"v":0,"d":"0.00 ₽"}}]
["Введите сведения в таблице «Домашние животные», начиная с ячейки справа, и в таблицу «Подарки», начиная с ячейки G46. Следующие инструкции указаны в ячейке A56.","ДОМАШНИЕ ЖИВОТНЫЕ","Плановые затраты","Фактические затраты","Разница",null,"Благотворительный взнос 2",null,null,{"$f":"Подарки[[#This Row],[Плановые затраты]]-Подарки[[#This Row],[Фактические затраты]]","v":{"v":0,"d":"0.00 ₽"}}]
[null,"Еда",null,null,{"$f":"ДомашниеЖивотные[[#This Row],[Плановые затраты]]-ДомашниеЖивотные[[#This Row],[Фактические затраты]]","v":{"v":0,"d":"0.00 ₽"}},null,"Благотворительный взнос 3",null,null,{"$f":"Подарки[[#This Row],[Плановые затраты]]-Подарки[[#This Row],[Фактические затраты]]","v":{"v":0,"d":"0.00 ₽"}}]
[null,"Врачи и анализы",null,null,{"$f":"ДомашниеЖивотные[[#This Row],[Плановые затраты]]-ДомашниеЖивотные[[#This Row],[Фактические затраты]]","v":{"v":0,"d":"0.00 ₽"}},null,"Промежуточный итог",null,null,{"$f":"SUBTOTAL(109,Подарки[Разница])","v":{"v":0,"d":"0.00 ₽"}}]
[null,"Уход",null,null,{"$f":"ДомашниеЖивотные[[#This Row],[Плановые затраты]]-ДомашниеЖивотные[[#This Row],[Фактические затраты]]","v":{"v":0,"d":"0.00 ₽"}}]
[null,"Игрушки",null,null,{"$f":"ДомашниеЖивотные[[#This Row],[Плановые затраты]]-ДомашниеЖивотные[[#This Row],[Фактические затраты]]","v":{"v":0,"d":"0.00 ₽"}},null,"ЮРИДИЧЕСКИЕ РАСХОДЫ","Плановые затраты","Фактические затраты","Разница"]
[null,"Другое",null,null,{"$f":"ДомашниеЖивотные[[#This Row],[Плановые затраты]]-ДомашниеЖивотные[[#This Row],[Фактические затраты]]","v":{"v":0,"d":"0.00 ₽"}},null,"Адвокат",null,null,{"$f":"ЮридическиеРасходы[[#This Row],[Плановые затраты]]-ЮридическиеРасходы[[#This Row],[Фактические затраты]]","v":{"v":0,"d":"0.00 ₽"}}]
[null,"Промежуточный итог",null,null,{"$f":"SUBTOTAL(109,ДомашниеЖивотные[Разница])","v":{"v":0,"d":"0.00 ₽"}},null,"Алименты",null,null,{"$f":"ЮридическиеРасходы[[#This Row],[Плановые затраты]]-ЮридическиеРасходы[[#This Row],[Фактические затраты]]","v":{"v":0,"d":"0.00 ₽"}}]
[{"$nulls":6},"Оплата залога или платежи по решению суда",null,null,{"$f":"ЮридическиеРасходы[[#This Row],[Плановые затраты]]-ЮридическиеРасходы[[#This Row],[Фактические затраты]]","v":{"v":0,"d":"0.00 ₽"}}]
["Введите сведения в таблице «Уход за собой», начиная с ячейки справа, и в таблицу «Юридические расходы», начиная с ячейки G52. Следующие инструкции указаны в ячейке A59.","УХОД ЗА СОБОЙ","Плановые затраты","Фактические затраты","Разница",null,"Другое",null,null,{"$f":"ЮридическиеРасходы[[#This Row],[Плановые затраты]]-ЮридическиеРасходы[[#This Row],[Фактические затраты]]","v":{"v":0,"d":"0.00 ₽"}}]
[null,"Медицина",null,null,{"$f":"УходЗаСобой[[#This Row],[Плановые затраты]]-УходЗаСобой[[#This Row],[Фактические затраты]]","v":{"v":0,"d":"0.00 ₽"}},null,"Промежуточный итог",null,null,{"$f":"SUBTOTAL(109,ЮридическиеРасходы[Разница])","v":{"v":0,"d":"0.00 ₽"}}]
[null,"Уход за волосами/ногтями",null,null,{"$f":"УходЗаСобой[[#This Row],[Плановые затраты]]-УходЗаСобой[[#This Row],[Фактические затраты]]","v":{"v":0,"d":"0.00 ₽"}}]
["Итоговые плановые расходы автоматически рассчитываются в ячейке J59, итоговые фактические расходы — в ячейке J61, а итоговая разница — в ячейке J63.","Одежда",null,null,{"$f":"УходЗаСобой[[#This Row],[Плановые затраты]]-УходЗаСобой[[#This Row],[Фактические затраты]]","v":{"v":0,"d":"0.00 ₽"}},null,"ИТОГОВЫЕ ПЛАНОВЫЕ ЗАТРАТЫ",null,null,{"$f":"SUBTOTAL(109,Жилье[Плановые затраты],Транспорт[Плановые затраты],Страхование[Плановые затраты],Еда[Плановые затраты],ДомашниеЖивотные[Плановые затраты],УходЗаСобой[Плановые затраты],Развлечения[Плановые затраты],Кредиты[Плановые затраты],Налоги[Плановые затраты],Сбережения[Плановые затраты],Подарки[Плановые затраты],ЮридическиеРасходы[Плановые затраты])","v":{"v":1195,"d":"1,195.00 ₽"}}]
[null,"Химчистка",null,null,{"$f":"УходЗаСобой[[#This Row],[Плановые затраты]]-УходЗаСобой[[#This Row],[Фактические затраты]]","v":{"v":0,"d":"0.00 ₽"}}]
[null,"Фитнес-клуб",null,null,{"$f":"УходЗаСобой[[#This Row],[Плановые затраты]]-УходЗаСобой[[#This Row],[Фактические затраты]]","v":{"v":0,"d":"0.00 ₽"}},null,"ИТОГОВЫЕ ФАКТИЧЕСКИЕ ЗАТРАТЫ",null,null,{"$f":"SUBTOTAL(109,Жилье[Фактические затраты],Транспорт[Фактические затраты],Страхование[Фактические затраты],Еда[Фактические затраты],ДомашниеЖивотные[Фактические затраты],УходЗаСобой[Фактические затраты],Развлечения[Фактические затраты],Кредиты[Фактические затраты],Налоги[Фактические затраты],Сбережения[Фактические затраты],Подарки[Фактические затраты],ЮридическиеРасходы[Фактические затраты])","v":{"v":1236,"d":"1,236.00 ₽"}}]
[null,"Сборы организации",null,null,{"$f":"УходЗаСобой[[#This Row],[Плановые затраты]]-УходЗаСобой[[#This Row],[Фактические затраты]]","v":{"v":0,"d":"0.00 ₽"}}]
[null,"Другое",null,null,{"$f":"УходЗаСобой[[#This Row],[Плановые затраты]]-УходЗаСобой[[#This Row],[Фактические затраты]]","v":{"v":0,"d":"0.00 ₽"}},null,"ИТОГОВАЯ РАЗНИЦА",null,null,{"$f":"J59-J61","v":{"v":-41,"d":"-41.00 ₽"}}]
[null,"Промежуточный итог",null,null,{"$f":"SUBTOTAL(109,УходЗаСобой[Разница])","v":{"v":0,"d":"0.00 ₽"}}]